fUSD/lending_fUSD_20240630
["ID","MTS","AMOUNT","RATE_DAILY","PERIOD"]
[330715091,1719729033229,-1261.10671581,0.0001389,2]
[330715092,1719729033241,-500.77266238,0.0001389,2]
[330715093,1719729033253,-784.34351086,0.0001389,2]
[330715094,1719729033264,-602.18236858,0.0001389,2]
[330715095,1719729033277,-672.3424,0.0001389,2]
[330715096,1719729033298,-7525.39905668,0.0001389,2]
[330715097,1719729033308,-3430.74199366,0.0001389,2]
[330715098,1719729033319,-500.0,0.00013899,3]
[330715099,1719729033329,-158.03869634,0.00013899,2]
[330715100,1719729033338,-196.37015947,0.00013899,2]
[330715101,1719729033348,-16827.3594,0.000139,2]
[330715102,1719729033357,-1094.5119,0.000139,2]
[330715103,1719729033367,-413.0552,0.000139,2]
[330715104,1719729033377,-3986.94632689,0.000139,2]
[330715105,1719729033386,-172.84242691,0.000139,2]
[330715106,1719729033395,-203.93691935,0.000139,2]
[330715107,1719729033406,-175.62575419,0.000139,2]
[330715108,1719729033416,-824.3362427,0.000139,2]
[330715109,1719729033427,-7415.97007922,0.000139,2]
[330715110,1719729033435,-451.96870334,0.000139,2]
[330715111,1719729033445,-218.85557088,0.000139,2]
[330715112,1719729033454,-532.9033,0.0001393,2]
[330715113,1719729033463,-1000.0,0.00013944,2]
[330715114,1719729033472,-15697.8954773,0.00013989,2]
[330715115,1719729033482,-2389.0704757,0.00013989,2]
[330715116,1719729033491,-32649.7746476,0.00013989,2]
[330715117,1719729033500,-5439.2596082,0.00013989,2]
[330715118,1719729033513,-155.0,0.00013989,2]
[330715119,1719729033523,-13061.3629918,0.0001399,2]
[330715120,1719729033533,-10424.8305062,0.0001399,2]
[330715121,1719729033543,-1987.8152929,0.0001399,2]
[330715122,1719729033553,-1586.5601101,0.0001399,2]
[330715123,1719729033562,-571.56557217,0.0001399,2]
[330715124,1719729033572,-27170.4950759,0.0001399,2]
[330715125,1719729033582,-21691.2155042,0.0001399,2]
[330715126,1719729033593,-214.56353668,0.0001399,2]
[330715127,1719729033602,-4527.177465,0.0001399,2]
[330715128,1719729033611,-3615.0953219,0.0001399,2]
[330715129,1719729033621,-1069.44608123,0.00013999,5]
[330715130,1719729033630,-500.0,0.00013999,3]
[330715131,1719729033640,-500.0,0.00013999,3]
[330715132,1719729033650,-542.08590585,0.00013999,3]
[330715133,1719729033659,-382.20966,0.00013999,3]
[330715134,1719729033668,-500.0,0.00013999,3]
[330715135,1719729033678,-500.0,0.00013999,3]
[330715136,1719729033687,-500.0,0.00013999,3]
[330715137,1719729033696,-765.33,0.00013999,3]
[330715138,1719729033705,-502.78,0.00013999,3]
[330715139,1719729033715,-555.25,0.00013999,3]
[330715140,1719729033727,-298.8924,0.00013999,3]
[330715141,1719729033737,-553.9289701,0.00013999,3]
[330715142,1719729033746,-500.0,0.00013999,3]
[330715143,1719729033756,-500.0,0.00013999,3]
[330715144,1719729033765,-500.0,0.00013999,3]
[330715145,1719729033775,-345.36744171,0.00013999,3]
[330715146,1719729033789,-500.0,0.00013999,3]
[330715147,1719729033798,-361.31,0.00013999,3]
[330715148,1719729033808,-617.4,0.00013999,3]
[330715149,1719729033820,-500.0,0.00013999,3]
[330715150,1719729033831,-500.0,0.00013999,3]
[330715151,1719729033841,-500.0,0.00013999,3]
[330715152,1719729033852,-500.0,0.00013999,3]
[330715153,1719729033863,-1887.31276,0.00013999,2]
[330715154,1719729033874,-788.0,0.00014,2]
[330715155,1719729033884,-760419.38920211,0.00014,2]
[330715156,1719729033896,-829.0,0.00014,2]
[330715157,1719729033907,-363.76455997,0.00014,2]
[330715158,1719729033919,-3995.83654807,0.00014,2]
[330715159,1719729033931,-809.73333754,0.00014,2]
[330715160,1719729033942,-8896.76130748,0.00014,2]
[330715161,1719729033956,-5865.45045287,0.00014,2]
[330715162,1719729033968,-932.66999365,0.00014,2]
[330715163,1719729033983,-8018.28304741,0.00014,2]
[330715164,1719729033995,-3064.60664569,0.00014,2]
[330715165,1719729034008,-3441.88583793,0.00014,2]
[330715167,1719729037676,-1815.72,0.00012882,2]
[330715168,1719729037686,-736.16517483,0.00014,2]
[330715169,1719729037698,-47562.56452375,0.00014,2]
[330715170,1719729037710,-3074.2545,0.00014,2]
[330715171,1719729037723,-1169.55400002,0.00014,2]
[330715172,1719729037921,-1973.84237263,0.00014,2]
[330715175,1719729037933,-438.29,0.00014,2]
[330715177,1719729037946,-975.42738337,0.00014,2]
[330715356,1719729039759,-204206.6491607,0.00014,2]
[330715358,1719729039771,-1191.88699385,0.00014,2]
[330715368,1719729039860,-515.5928677,0.00014,2]
[330715370,1719729039873,-650.16924331,0.00014,2]
[330715372,1719729039885,-949.18912142,0.00014,2]
[330715375,1719729039897,-614.743805,0.00014,2]
[330715377,1719729039910,-682.20057079,0.00014,2]
[330715379,1719729039922,-1647.69885164,0.00014,2]
[330715385,1719729039970,-338.79383807,0.00014,2]
[330715387,1719729039982,-9894.76560632,0.00014,2]
[330715389,1719729039994,-1088.3299892,0.00014,2]
[330715392,1719729040006,-337.374,0.00014,2]
[330715394,1719729040017,-2019.46251252,0.00014,2]
[330715402,1719729040092,-211307.5000269,0.00014,2]
[330715404,1719729040105,-3258.19472346,0.00014,2]
[330715407,1719729040117,-433.65476328,0.00014,2]
[330715409,1719729040130,-358.8200025,0.00014,2]
[330715417,1719729040197,-11478.26866453,0.00014,2]
[330715419,1719729040208,-9417.0797708,0.00014,2]
[330715421,1719729040220,-170976.81831178,0.00014,2]
[330715423,1719729040232,-20666.65004122,0.00014,2]
[330715425,1719729040244,-1487.92434299,0.00014,2]
[330715428,1719729040256,-387.72733961,0.00014,2]
[330715476,1719729042671,-582.54329347,0.00014,2]
[330715479,1719729042757,-6280.06578001,0.00014,2]
[330715480,1719729042769,-1889.08592415,0.00014,2]
[330715481,1719729043272,-3050.21521888,0.00014,2]
[330715482,1719729043283,-685.34625858,0.00014,2]
[330715501,1719729045567,-544.45108249,0.00014,2]
[330715504,1719729045578,-6015.01097076,0.00014,2]
[330715506,1719729045590,-644.05,0.00014,2]
[330715508,1719729045601,-209679.09193321,0.00014,2]
[330715517,1719729045684,-278.97054483,0.00014,2]
[330715520,1719729045695,-26816.0797369,0.00014,2]
[330715522,1719729045706,-34771.37821692,0.00014,2]
[330715524,1719729045717,-6037.72443787,0.00014,2]
[330715526,1719729045728,-16001.90295918,0.00014,2]
[330715528,1719729045739,-9670.89276934,0.00014,2]
[330715531,1719729045751,-967.0,0.00014,2]
[330715533,1719729045762,-11624.43213228,0.00014,2]
[330715535,1719729045773,-914.00148837,0.00014,2]
[330715537,1719729045789,-2089.86470127,0.00014,2]
[330715539,1719729045802,-2082.67330562,0.00014,2]
[330715542,1719729045813,-1033.05017563,0.00014,2]
[330715544,1719729045846,-320.92939446,0.000139,2]
[330715546,1719729045856,-450.19640829,0.00014,2]
[330715548,1719729045869,-108690.53280134,0.00014,2]
[330715550,1719729045881,-769.05650803,0.00014,2]
[330715551,1719729045892,-417.50900005,0.00014,2]
[330715552,1719729045904,-2088.50805384,0.00014,2]
[330715553,1719729045916,-360.45056273,0.00014,2]
[330715554,1719729045928,-432.5,0.00014,2]
[330715555,1719729045940,-9241.49171159,0.00014,2]
[330715556,1719729045952,-2749.33456336,0.00014,2]
[330715557,1719729045962,-544.68072996,0.00014,2]
[330715558,1719729045974,-295.12565298,0.00014,2]
[330715559,1719729045986,-501.50580398,0.00014,2]
[330715560,1719729045997,-605.50432414,0.00014,2]
[330715561,1719729046008,-1900.443,0.00014,2]
[330715562,1719729046019,-3921.13534616,0.00014,2]
[330715563,1719729046040,-2696.67068075,0.00014,2]
[330715564,1719729046052,-486.12964601,0.00014,2]
[330715566,1719729046063,-24154.30826207,0.00014,2]
[330715567,1719729046075,-6649.48547676,0.00014,2]
[330715575,1719729491796,266.46,0.00026,120]
[330715577,1719729697602,179.61027696,0.00011073,2]
[330715578,1719729807390,1270.37297567,0.00011098,2]
[330715579,1719729821104,1133.92751376,0.00011098,2]
[330715580,1719729831727,502.1,0.00010636,2]
[330715581,1719729921126,1622.375187,0.00011099,2]
[330715582,1719730002152,624.28077392,0.00011098,2]
[330715584,1719730018178,-555.41293917,0.00011172,2]
[330715586,1719730071042,291.30212659,0.00011098,2]
[330715588,1719730085690,253.41605365,0.00011098,2]
[330715589,1719730123580,346.07679139,0.00011098,2]
[330715590,1719730138237,155.77738268,0.00011098,2]
[330715591,1719730150676,227.04865744,0.00011098,2]
[330715592,1719730151129,1572.28573963,0.00011098,2]
[330715593,1719730168617,155.62313943,0.00011098,2]
[330715594,1719730174289,337.09590134,0.00011098,2]
[330715595,1719730183869,155.61182952,0.00011098,2]
[330715596,1719730209415,218.03958267,0.00011098,2]
[330715597,1719730227154,235.17702148,0.00011098,2]
[330715598,1719730232492,155.0,0.00011098,2]
[330715601,1719730234607,-1264.58706083,0.00011172,2]
[330715602,1719730234617,-9987.80463355,0.00011197,2]
[330715603,1719730234630,-1657.86901105,0.00011197,2]
[330715605,1719730234641,-3929.48774537,0.00011197,2]
[330715611,1719730234787,-5904.14613392,0.00011197,2]
[330715612,1719730234798,-8018.28304741,0.00011197,2]
[330715613,1719730234811,-20502.4094287,0.00011197,2]
[330715614,1719730234824,-199.93455324,0.00011197,2]
[330715615,1719730234835,-217.75356956,0.00011199,2]
[330715616,1719730234846,-24007.77034626,0.00012291,2]
[330715617,1719730234858,-1000.0,0.00012302,2]
[330715618,1719730234868,-214.03,0.00012327,2]
[330715619,1719730234877,-150.0,0.00012331,2]
[330715620,1719730234887,-169.03,0.00012349,2]
[330715621,1719730234896,-7103.09,0.00012349,2]
[330715622,1719730234906,-200.0,0.0001241,2]
[330715623,1719730234915,-250.0,0.0001241,2]
[330715624,1719730234925,-250.0,0.00012438,2]
[330715625,1719730234934,-1000.0,0.00012514,2]
[330715626,1719730234943,-165.13,0.00012645,2]
[330715627,1719730234952,-500.0,0.00012708,2]
[330715628,1719730234961,-23900.0,0.0001273,2]
[330715629,1719730234970,-502.1,0.000129,2]
[330715630,1719730234980,-388.58987389,0.00012978,2]
[330715631,1719730234989,-1965.3,0.00013001,2]
[330715632,1719730235000,-500.0,0.00013067,2]
[330715633,1719730235012,-227.04865744,0.00013452,2]
[330715634,1719730235023,-295.1494503,0.00013472,2]
[330715635,1719730235033,-168.61,0.00013476,2]
[330715636,1719730235043,-2644.97,0.00013699,2]
[330715637,1719730235053,-163.41,0.00013699,2]
[330715638,1719730235063,-514.96,0.00013699,2]
[330715639,1719730235073,-167.86,0.00013699,2]
[330715640,1719730235082,-416.18612044,0.00013774,2]
[330715641,1719730235092,-23010.36365453,0.0001379,2]
[330715642,1719730235102,-15895.5312,0.0001379,2]
[330715643,1719730235115,-1797.8025,0.0001379,2]
[330715644,1719730235124,-302.8701,0.0001379,2]
[330715645,1719730235134,-3475.06064887,0.00013799,2]
[330715646,1719730235144,-957.68312934,0.000138,2]
[330715647,1719730235154,-368.35411952,0.00013802,2]
[330715648,1719730235163,-480.83239393,0.00013869,2]
[330715649,1719730235172,-500.0,0.00013888,2]
[330715650,1719730235182,-200.0,0.00013888,2]
[330715651,1719730235191,-733.44,0.00013889,3]
[330715652,1719730235200,-500.0,0.00013889,3]
[330715653,1719730235211,-1008.32946099,0.00013889,3]
[330715654,1719730235220,-500.0,0.00013889,3]
[330715655,1719730235230,-500.0,0.00013889,3]
[330715656,1719730235240,-500.0,0.00013889,3]
[330715657,1719730235250,-500.0,0.00013889,3]
[330715658,1719730235263,-500.0,0.00013889,3]
[330715659,1719730235272,-503.99443286,0.00013889,3]
[330715660,1719730235282,-500.0,0.00013889,3]
[330715661,1719730235292,-500.0,0.00013889,3]
[330715662,1719730235301,-500.0,0.00013889,3]
[330715663,1719730235311,-500.0,0.00013889,3]
[330715664,1719730235320,-500.0,0.00013889,3]
[330715665,1719730235330,-346.90684006,0.00013889,3]
[330715666,1719730235339,-500.0,0.00013889,3]
[330715667,1719730235348,-503.36033486,0.00013889,3]
[330715668,1719730235358,-500.0,0.00013889,3]
[330715669,1719730235368,-505.09150014,0.00013889,3]
[330715670,1719730235377,-500.0,0.00013889,3]
[330715671,1719730235386,-500.0,0.00013889,3]
[330715672,1719730235395,-500.0,0.00013889,3]
[330715673,1719730235405,-500.0,0.00013889,3]
[330715674,1719730235414,-500.0,0.00013889,3]
[330715675,1719730235423,-500.0,0.00013889,3]
[330715676,1719730235433,-500.0,0.00013889,3]
[330715677,1719730235442,-376.95176554,0.00013889,3]
[330715678,1719730235452,-500.0,0.00013889,3]
[330715679,1719730235461,-500.0,0.00013889,3]
[330715680,1719730235471,-503.61662276,0.00013889,3]
[330715681,1719730235482,-501.9118459,0.00013889,3]
[330715682,1719730235491,-503.62541372,0.00013889,3]
[330715683,1719730235501,-505.81011871,0.00013889,3]
[330715684,1719730235511,-500.0,0.00013889,3]
[330715685,1719730235521,-156.274,0.0001389,2]
[330715686,1719730235530,-500.0,0.0001389,2]
[330715687,1719730235539,-1951.9501,0.0001389,2]
[330715688,1719730235548,-40532.84456291,0.0001389,2]
[330715689,1719730235561,-522.67520343,0.0001389,2]
[330715690,1719730235572,-500.0,0.0001389,2]
[330715691,1719730235583,-6289.34024437,0.0001389,2]
[330715692,1719730235595,-51060.62808929,0.0001389,2]
[330715693,1719730235604,-320.05185822,0.00013899,2]
[330715694,1719730235614,-41869.6957,0.000139,2]
[330715695,1719730235623,-173.84290702,0.000139,2]
[330715696,1719730235632,-4181.16529586,0.000139,2]
[330715697,1719730235641,-7500.0,0.000139,2]
[330715698,1719730235650,-175.62575415,0.000139,2]
[330715699,1719730235659,-538.53851312,0.000139,2]
[330715700,1719730235669,-5806.334219,0.000139,2]
[330715701,1719730235679,-2754.1209092,0.00013989,2]
[330715702,1719730235688,-16413.0211776,0.00013989,2]
[330715703,1719730235697,-1511.8496786,0.00013989,2]
[330715704,1719730235706,-155.13466865,0.00013989,2]
[330715705,1719730235715,-2626.6928884,0.0001399,2]
[330715706,1719730235725,-2499.2648675,0.0001399,2]
[330715707,1719730235734,-15270.019901,0.0001399,2]
[330715708,1719730235743,-14127.0186244,0.0001399,2]
[330715709,1719730235752,-1406.5646068,0.0001399,2]
[330715710,1719730235762,-1301.2795351,0.0001399,2]
[330715711,1719730235771,-202.53959621,0.0001399,2]
[330715712,1719730235780,-202.53959621,0.0001399,2]
[330715713,1719730235790,-152.89860748,0.00013999,2]
[330715714,1719730235799,-150.01,0.00013999,2]
[330715715,1719730235811,-500.0,0.00013999,3]
[330715716,1719730235820,-500.0,0.00013999,3]
[330715717,1719730235829,-503.67779661,0.00013999,3]
[330715718,1719730235838,-500.0,0.00013999,3]
[330715719,1719730235848,-503.22461548,0.00013999,3]
[330715720,1719730235860,-500.0,0.00013999,3]
[330715721,1719730235870,-500.0,0.00013999,3]
[330715722,1719730235879,-503.03892614,0.00013999,3]
[330715723,1719730235888,-569.07,0.00013999,3]
[330715724,1719730235897,-201.62,0.00013999,3]
[330715725,1719730235906,-502.17769418,0.00013999,3]
[330715726,1719730235915,-300.92854485,0.00013999,3]
[330715727,1719730235924,-500.0,0.00013999,3]
[330715728,1719730235933,-500.0,0.00013999,3]
[330715729,1719730235942,-500.0,0.00013999,3]
[330715730,1719730235952,-500.0,0.00013999,3]
[330715731,1719730235961,-500.0,0.00013999,3]
[330715732,1719730235971,-500.0,0.00013999,3]
[330715733,1719730235980,-733.44,0.00013999,3]
[330715734,1719730235989,-500.0,0.00013999,3]
[330715735,1719730235998,-500.0,0.00013999,3]
[330715736,1719730236008,-500.0,0.00013999,3]
[330715737,1719730236017,-500.0,0.00013999,3]
[330715738,1719730236026,-500.0,0.00013999,3]
[330715739,1719730236036,-459.25,0.00013999,3]
[330715740,1719730236046,-500.0,0.00013999,3]
[330715741,1719730236055,-500.0,0.00013999,3]
[330715742,1719730236065,-500.0,0.00013999,3]
[330715743,1719730236074,-375.54,0.00013999,3]
[330715744,1719730236084,-500.0,0.00013999,3]
[330715745,1719730236093,-500.0,0.00013999,3]
[330715746,1719730236103,-348.43,0.00013999,3]
[330715747,1719730236115,-170.4,0.00013999,3]
[330715748,1719730236124,-336.49,0.00013999,3]
[330715749,1719730236133,-500.0,0.00013999,3]
[330715750,1719730236142,-500.0,0.00013999,3]
[330715751,1719730236153,-500.0,0.00013999,3]
[330715752,1719730236162,-500.0,0.00013999,3]
[330715753,1719730236171,-500.0,0.00013999,3]
[330715754,1719730236181,-500.0,0.00013999,3]
[330715755,1719730236192,-500.0,0.00013999,3]
[330715756,1719730236202,-225.36,0.00013999,3]
[330715757,1719730236211,-411.72,0.00013999,3]
[330715758,1719730236221,-805.0,0.00014,2]
[330715759,1719730236231,-148720.15885255,0.00014,2]
[330715760,1719730236243,-1933.2137905,0.00014,2]
[330715761,1719730236262,-1561.22577742,0.00014,2]
[330715762,1719730236274,-1833.35163994,0.00014,2]
[330715763,1719730236286,-269.37971792,0.00014,2]
[330715764,1719730236299,-1476.94465062,0.00014,2]
[330715765,1719730236310,-1300.12688442,0.00014,2]
[330715766,1719730236322,-43504.74285745,0.00014,2]
[330715767,1719730236427,195.92266575,0.00011098,2]
[330715776,1719730237782,-471.83724849,0.00013889,3]
[330715781,1719730237916,-28.16275151,0.00013889,3]
[330715782,1719730237927,-500.0,0.00013999,3]
[330715783,1719730237936,-936.2704185,0.00014,2]
[330715784,1719730237947,-742.11629914,0.00014,2]
[330715785,1719730237959,-277.0527081,0.00014,2]
[330715786,1719730237971,-6117.02874937,0.00014,2]
[330715787,1719730237982,-3733.84704,0.00014,2]
[330715788,1719730237994,-9431.90243453,0.00014,2]
[330715789,1719730238006,-408.7826365,0.00014,2]
[330715790,1719730238017,-6930.27989717,0.00014,2]
[330715791,1719730238029,-10208.64443999,0.00014,2]
[330715792,1719730238040,-234465.9345562,0.00014,2]
[330715793,1719730238050,-854.72455824,0.00014,2]
[330715794,1719730238062,-702.12138426,0.00014,2]
[330715795,1719730238083,-1095529.34644928,0.00014,2]
[330715796,1719730238093,-3350.04494451,0.00014,2]
[330715797,1719730238102,-804999.2462379,0.00014,2]
[330715798,1719730238118,-1604.90952505,0.00014,2]
[330715799,1719730238130,-712.29463692,0.00014,2]
[330715800,1719730238142,-580.79166872,0.00014,2]
[330715801,1719730238154,-292.20103883,0.00014,2]
[330715802,1719730238165,-2532.81256834,0.00014,2]
[330715803,1719730238177,-951.56347799,0.00014,2]
[330715804,1719730238192,-1766.12431216,0.00014,2]
[330715806,1719730238206,-7051.48798426,0.00014,2]
[330715809,1719730238218,-299.58797889,0.00014,2]
[330715810,1719730238229,-414.0846342,0.00014,2]
[330715811,1719730238241,-464066.78141828,0.00014,2]
[330715812,1719730238252,-6264.33621249,0.00014,2]
[330715813,1719730239962,-807.3668648,0.00014,2]
[330715815,1719730239974,-337.52317038,0.00014,2]
[330715817,1719730239986,-856.15680213,0.00014,2]
[330715818,1719730239998,-293.7,0.00014,2]
[330715819,1719730240010,-3233.95897282,0.00014,2]
[330715820,1719730240039,-10328.78952073,0.00014,2]
[330715821,1719730240103,-77755.47574217,0.00014,2]
[330715822,1719730240119,-895.86543096,0.00014,2]
[330715823,1719730240130,-167761.59710981,0.00014,2]
[330715824,1719730240142,-1086.14729352,0.00014,2]
[330715825,1719730240154,-1435.90191552,0.00014,2]
[330715826,1719730240166,-723.58886561,0.00014,2]
[330715827,1719730240236,-4905.37844259,0.00014,2]
[330715828,1719730240248,-13126.94757868,0.00014,2]
[330715829,1719730240259,-789.09709592,0.00014,2]
[330715830,1719730240271,-322.87653265,0.00014,2]
[330715831,1719730240283,-8600.0,0.00014,2]
[330715832,1719730240295,-298.31412405,0.00014,2]
[330715833,1719730240306,-311.89,0.00014,2]
[330715834,1719730240318,-1383.8566216,0.00014,2]
[330715835,1719730240329,-1121.2213578,0.00014,2]
[330715836,1719730240343,-195435.34402532,0.00014,2]
[330715837,1719730240364,-961.79998404,0.00014,2]
[330715838,1719730240376,-861.84195048,0.00014,2]
[330715839,1719730240387,-4031.09087575,0.00014,2]
[330715840,1719730240398,-342.108,0.00014,2]
[330715841,1719730240409,-303.94329984,0.00014,2]
[330715854,1719730242979,-500.0,0.00013999,3]
[330715855,1719730242990,-190.0,0.00014,2]
[330715856,1719730243002,-267.14573897,0.00014,2]
[330715857,1719730243014,-268.85426103,0.00014,2]
[330715858,1719730243025,-135848.53510559,0.00014,2]
[330715859,1719730243109,-837.77,0.00014,2]
[330715860,1719730243122,-1377.45087417,0.00014,2]
[330715861,1719730243133,-3792.97760677,0.00014,2]
[330715862,1719730243144,-463.14116671,0.00014,2]
[330715863,1719730243155,-4384.40477623,0.00014,2]
[330715864,1719730243166,-3857.46941861,0.00014,2]
[330715865,1719730243177,-566.80410465,0.00014,2]
[330715866,1719730243189,-6240.54208,0.00014,2]
[330715867,1719730243201,-1075.00710615,0.00014,2]
[330715868,1719730243213,-607.32578925,0.00014,2]
[330715869,1719730243237,-777.87029025,0.00014,2]
[330715870,1719730243248,-686.6132303,0.00014,2]
[330715871,1719730243259,-906.17357973,0.00014,2]
[330715872,1719730243271,-7798.92387174,0.00014,2]
[330715873,1719730243282,-514.73827382,0.00014,2]
[330715874,1719730243295,-24526.4133895,0.00014,2]
[330715875,1719730243306,-3167.198499,0.00014,2]
[330715876,1719730243317,-252.269328,0.00014,2]
[330715877,1719730243373,-352.29,0.00013889,3]
[330715878,1719730243382,-38.899999,0.00014,2]
[330715879,1719730243428,-474.06941456,0.00014,2]
[330715880,1719730243439,-344.10978337,0.00014,2]
[330715882,1719730245918,-677.99999947,0.00014,2]
[330715884,1719730245930,-8336.80839778,0.00014,2]
[330715885,1719730245942,-791.69949259,0.00014,2]
[330715886,1719730245955,-1014.75723147,0.00014,2]
[330715887,1719730245967,-1018.3,0.00014,2]
[330715888,1719730246055,-783.37200756,0.00014,2]
[330715889,1719730246067,-12452.09708928,0.00014,2]
[330715890,1719730246078,-1468.61436009,0.00014,2]
[330715891,1719730246090,-9554.179056,0.00014,2]
[330715892,1719730246101,-22304.1566942,0.00014,2]
[330715893,1719730246117,-27806.522086,0.00014,2]
[330715894,1719730246128,-5573.88035066,0.00014,2]
[330715895,1719730246139,-4788.38967729,0.00014,2]
[330715896,1719730246151,-387.53754655,0.00014,2]
[330715897,1719730246162,-794.89183922,0.00014,2]
[330715898,1719730246174,-674.79429573,0.00014,2]
[330715899,1719730246185,-1458.83968283,0.00014,2]
[330715900,1719730246199,-409.14193754,0.00014,2]
[330715901,1719730246210,-1757.99426359,0.00014,2]
[330715902,1719730246221,-531.0,0.00014,2]
[330715903,1719730246232,-19510.98671466,0.00014,2]
[330715904,1719730246250,-1546.96039731,0.00014,2]
[330715905,1719730246262,-4571.81618193,0.00014,2]
[330715906,1719730246273,-1805.59770737,0.00014,2]
[330715907,1719730246284,-805.00539877,0.00014,2]
[330715908,1719730246297,-2306.87815915,0.00014,2]
[330715909,1719730246308,-489.02686996,0.00014,2]
[330715910,1719730246319,-399.630292,0.00014,2]
[330715911,1719730246330,-6037.61331955,0.00014,2]
[330715912,1719730246342,-3821.0,0.00014,2]
[330715913,1719730246353,-383.87296915,0.00014,2]
[330715914,1719730246365,-1258.7533834,0.00014,2]
[330715915,1719730246377,-3965.93903504,0.00014,2]
[330715916,1719730246399,-357096.51224273,0.00014,2]
[330715917,1719730246410,-4666.27831828,0.00014,2]
[330715918,1719730246421,-2071.00287212,0.00014,2]
[330715919,1719730246433,-5762.25570456,0.00014,2]
[330715920,1719730246445,-1133.82762388,0.00014,2]
[330715921,1719730246456,-42438.88335231,0.00014,2]
[330715922,1719730246468,-295.25514135,0.00014,2]
[330715927,1719730340610,491.6135,0.00011072,2]
[330715933,1719730403697,500.0,0.00010982,2]
[330715934,1719730404093,500.0,0.00010983,2]
[330715935,1719730404512,500.0,0.00010983,2]
[330715938,1719730567425,1096.5530102,0.00011098,2]
[330715939,1719730594372,155.74076896,0.00011098,2]
[330715940,1719730594940,174.15181397,0.00011098,2]
[330715941,1719730624718,227.04865744,0.00011098,2]
[330715942,1719730635705,227.04865744,0.00011098,2]
[330715943,1719730674086,155.16560532,0.00011098,2]
[330715945,1719731122976,227.04865744,0.00011098,2]
[330715946,1719731162090,485.55,0.0001064,2]
[330715947,1719731175134,311.15090226,0.00011098,2]
[330715955,1719731354114,-200.0,0.00012375,2]
[330715956,1719731354137,-800.0,0.00012541,2]
[330715957,1719731354160,-443.59,0.00012541,2]
[330715958,1719731354183,-250.0,0.00012542,2]
[330715959,1719731354209,-500.0,0.00012559,2]
[330715960,1719731354234,-88.15718434,0.00012559,2]
[330715971,1719731433041,-227.04865744,0.00012273,2]
[330715972,1719731433051,-300.0,0.00012558,2]
[330715973,1719731433061,-161.84281566,0.00012559,2]
[330715974,1719731433077,-2131.1085269,0.00012576,2]
[330715975,1719731433090,-506.58096069,0.00012576,2]
[330715976,1719731433102,-148.01051241,0.00012576,2]
[330715977,1719731433112,-2070.63,0.00012651,2]
[330715978,1719731433122,-534.1237581,0.00012714,2]
[330715979,1719731433134,-49465.8762419,0.00012714,2]
[330715980,1719731433144,-152.63,0.00012714,2]
[330715981,1719731433157,-152.63,0.00012749,2]
[330715982,1719731433167,-152.63,0.00012784,2]
[330715983,1719731433177,-152.63,0.00012819,2]
[330715984,1719731433187,-152.63,0.00012854,2]
[330715985,1719731433197,-152.63,0.00012889,2]
[330715986,1719731433207,-485.55,0.00012904,2]
[330715987,1719731433216,-152.63,0.00012924,2]
[330715988,1719731433226,-152.63,0.00012958,2]
[330715989,1719731433235,-150.99,0.00012968,2]
[330715990,1719731433245,-499.99,0.00012968,2]
[330715991,1719731433255,-152.63,0.00012993,2]
[330715992,1719731433265,-1798.48,0.00013004,2]
[330715993,1719731433275,-152.63,0.00013028,2]
[330715994,1719731433284,-152.63,0.00013063,2]
[330715995,1719731433294,-152.63,0.00013098,2]
[330715996,1719731433304,-152.63,0.00013133,2]
[330715997,1719731433314,-152.63,0.00013168,2]
[330715998,1719731433332,-152.63,0.00013203,2]
[330715999,1719731433341,-152.63,0.00013237,2]